bitfinex-derivatives/quotes_ETHF0:USTF0_20230104
["timestamp","ask_amount","ask_price","bid_price","bid_amount"]
[1672861924315,17.69333528,1253.7,1253.6,7.63979944]
[1672861929450,21.80653016,1253.7,1253.6,7.63979944]
[1672861929866,21.80253016,1253.7,1253.2,16.94372929]
[1672861930069,2.3636391,1253.3,1253.2,13.958]
[1672861930289,5.4586391,1253.3,1253.2,13.958]
[1672861930493,5.4586391,1253.3,1253.1,4.20082599]
[1672861930703,1.77269067,1253.2,1253.1,6.70082599]
[1672861930913,4.27269067,1253.2,1253.1,6.70082599]
[1672861931122,4.27269067,1253.2,1253.1,4.20082599]
[1672861931334,4.27269067,1253.2,1253.1,6.70082599]
[1672861931545,4.27269067,1253.2,1253.1,4.20082599]
[1672861931862,4.27269067,1253.2,1253.1,6.70082599]
[1672861932072,4.27269067,1253.2,1253.1,4.20082599]
[1672861932498,1.77269067,1253.2,1253.1,6.70082599]
[1672861933231,1.77269067,1253.2,1253.1,4.20082599]
[1672861933750,1.77269067,1253.2,1253.1,6.70082599]
[1672861933965,1.77269067,1253.2,1253.1,4.20082599]
[1672861934600,1.77269067,1253.2,1253.1,6.70082599]
[1672861935544,1.77269067,1253.2,1253.1,4.20082599]
[1672861936071,1.77269067,1253.2,1253.1,6.70082599]
[1672861936589,1.77269067,1253.2,1253.1,3.69352599]
[1672861936807,1.77269067,1253.2,1253.1,4.20082599]
[1672861937231,1.77269067,1253.2,1253.1,6.70082599]
[1672861937639,5.73132977,1253.3,1253.1,6.70082599]
[1672861937852,3.36769067,1253.3,1253.2,1.5]
[1672861938480,5.73132977,1253.3,1253.2,1.5]
[1672861938697,5.73132977,1253.3,1253.1,6.70082599]
[1672861938904,1.77269067,1253.2,1253.1,6.70082599]
[1672861939430,1.77269067,1253.2,1253.0,4.56472929]
[1672861939746,3.36469067,1253.1,1252.9,5.99302929]
[1672861939959,3.36469067,1253.1,1253.0,2.5]
[1672861940578,3.36469067,1253.1,1252.9,5.5073]
[1672861940904,5.72832977,1253.1,1252.9,5.5073]
[1672861941101,5.72832977,1253.1,1253.0,2.5]
[1672861941317,3.36469067,1253.1,1253.0,2.5]
[1672861941948,3.36469067,1253.1,1252.9,5.5073]
[1672861944049,1.77269067,1253.1,1253.0,1.5]
[1672861944256,1.77269067,1253.2,1253.0,3.095]
[1672861947732,1.77269067,1253.2,1253.1,3.0073]
[1672861949416,1.77269067,1253.2,1253.0,3.095]
[1672861949946,3.36769067,1253.1,1252.9,3.0073]
[1672861950156,5.73132977,1253.1,1252.9,3.0073]
[1672861950365,8.73862977,1253.1,1252.9,3.0073]
[1672861950580,1.77269067,1253.0,1252.9,3.0073]
[1672861950785,8.73862977,1253.1,1252.9,3.0073]
[1672861951413,8.73862977,1253.1,1253.0,1.5]
[1672861951623,3.36769067,1253.1,1253.0,1.5]
[1672861952884,5.73132977,1253.1,1253.0,1.5]
[1672861953625,3.36769067,1253.1,1253.0,1.5]
[1672861954043,5.73132977,1253.1,1253.0,1.5]
[1672861954258,1.77269067,1253.1,1253.0,1.5]
[1672861954881,5.73132977,1253.2,1253.0,1.5]
[1672861955090,1.77269067,1253.1,1253.0,1.5]
[1672861955518,5.73132977,1253.2,1253.0,1.5]
[1672861956874,1.77269067,1253.1,1253.0,2.69352599]
[1672861957090,1.77269067,1253.1,1253.0,1.5]
[1672861958874,4.13632977,1253.1,1253.0,2.69352599]
[1672861959297,4.13632977,1253.1,1252.9,7.58802929]
[1672861959508,1.77470237,1253.0,1252.9,5.79582599]
[1672861959717,1.77470237,1253.0,1252.9,7.58802929]
[1672861960035,1.77470237,1253.0,1252.9,9.08802929]
[1672861962031,2.9581251,1253.0,1252.9,9.08802929]
[1672861962662,1.77470237,1253.0,1252.9,7.29582599]
[1672861963082,1.77470237,1253.0,1252.9,9.08802929]
[1672861963294,2.95820381,1253.0,1252.9,9.08802929]
[1672861964657,2.95820381,1253.0,1252.9,4.8872033]
[1672861964869,2.95820381,1253.0,1252.9,3.2922033]
[1672861966971,1.77470237,1253.0,1252.9,4.48669631]
[1672861968024,1.77470237,1253.0,1252.9,3.2922033]
[1672861968229,2.95898903,1253.0,1252.9,3.2922033]
[1672861968439,1.77470237,1253.0,1252.9,5.65181652]
[1672861968652,2.95952841,1253.0,1252.9,3.85961322]
[1672861970651,1.77470237,1253.0,1252.9,3.85961322]
[1672861970865,1.77470237,1253.0,1252.9,6.86691322]
[1672861971609,1.77470237,1253.0,1252.9,6.30013652]
[1672861971808,4.13834147,1253.0,1252.9,6.30013652]
[1672861973382,4.13834147,1253.0,1252.9,4.80013652]
[1672861973599,2.3636391,1253.0,1252.9,4.80013652]
[1672861976527,2.3636391,1253.0,1252.9,7.15974974]
[1672861977171,2.3636391,1253.0,1252.9,4.80013652]
[1672861978529,2.95454887,1253.0,1252.9,4.80013652]
[1672861978738,2.95454887,1253.0,1252.9,5.9963901]
[1672861978949,5.32649088,1253.0,1252.9,4.80013652]
[1672861979369,2.37194201,1253.0,1252.9,4.80013652]
[1672861979579,2.37194201,1253.0,1252.9,7.15974974]
[1672861979796,5.32649088,1253.0,1252.9,6.30013652]
[1672861980427,2.37194201,1253.0,1252.9,8.65974974]
[1672861980846,2.37194201,1253.0,1252.9,6.86691322]
[1672861982957,5.32649088,1253.0,1252.9,4.80159252]
[1672861983271,2.95454887,1253.0,1252.9,5.99782854]
[1672861983893,2.95454887,1253.0,1252.9,4.80159252]
[1672861984424,2.95454887,1253.0,1252.9,5.99786104]
[1672861984640,2.95454887,1253.0,1252.9,4.80159252]
[1672861985050,2.95454887,1253.0,1252.9,5.99775612]
[1672861985368,2.95454887,1253.0,1252.9,1.1961636]
[1672861985582,4.5993,1253.0,1252.8,1.1961636]
[1672861985895,4.56293055,1252.9,1252.8,1.1961636]
[1672861986306,4.095,1252.9,1252.8,1.1961636]
[1672861986722,7.06074689,1252.9,1252.7,5.49045612]
[1672861986949,2.37260395,1252.8,1252.7,5.49045612]
[1672861989149,2.37260395,1252.8,1252.7,3.6961636]
[1672861989359,2.37260395,1252.8,1252.7,1.1961636]
[1672861989566,2.37260395,1252.8,1252.7,3.6961636]
[1672861990306,2.37260395,1252.8,1252.7,1.1961636]
[1672861990729,5.37990395,1252.8,1252.7,1.1961636]
[1672861991563,9.92965084,1252.8,1252.6,2.99045612]
[1672861991775,1.77790382,1252.7,1252.6,5.49045612]
[1672861991983,1.77790382,1252.7,1252.6,2.99045612]
[1672861992405,5.74550777,1252.7,1252.6,1.1961636]
[1672861992614,3.96760395,1252.7,1252.6,1.1961636]
[1672861992837,6.46760395,1252.7,1252.5,5.99775612]
[1672861993036,2.96142207,1252.6,1252.5,2.99045612]
[1672861993241,4.78415324,1252.6,1252.5,1.1961636]
[1672861993452,1.77685324,1252.6,1252.5,1.1961636]
[1672861993670,2.96133527,1252.6,1252.5,1.1961636]
[1672861994199,1.18448203,1252.6,1252.5,2.99045612]
[1672861994508,1.18448203,1252.6,1252.5,4.29429252]
[1672861995341,1.18448203,1252.6,1252.5,1.79429252]
[1672861995556,1.18448203,1252.6,1252.5,2.98808103]
[1672861996193,1.18448203,1252.6,1252.5,5.48808103]
[1672861996405,2.96133527,1252.6,1252.5,1.19378851]
[1672861996821,1.18448203,1252.6,1252.5,1.19378851]
[1672861997033,1.18448203,1252.6,1252.5,2.98808103]
[1672861997238,15.00433527,1252.7,1252.5,1.79429252]
[1672861997457,1.18448203,1252.6,1252.5,2.98762402]
[1672861997871,1.18053022,1252.6,1252.5,2.98762402]
[1672861998081,1.18053022,1252.6,1252.5,5.48762402]
[1672861998285,1.18053022,1252.6,1252.5,1.1933315]
[1672861998605,5.96468346,1252.6,1252.4,5.48762402]
[1672861999025,4.18783022,1252.6,1252.4,5.48762402]
[1672861999239,5.96468346,1252.6,1252.4,2.98762402]
[1672861999451,1.591,1252.5,1252.4,1.1933315]
[1672861999863,1.591,1252.5,1252.3,5.99492402]
[1672862000070,3.36785324,1252.5,1252.3,8.49492402]
[1672862000499,1.59,1252.4,1252.3,8.49492402]
[1672862000920,1.59,1252.4,1252.3,6.7006315]
[1672862001338,1.59,1252.4,1252.3,3.6933315]
[1672862001549,1.59,1252.4,1252.3,5.48762402]
[1672862001761,1.59,1252.4,1252.3,4.29429252]
[1672862002608,1.595,1252.5,1252.3,7.30159252]
[1672862002922,1.595,1252.5,1252.4,2.98671919]
[1672862003135,1.595,1252.5,1252.4,4.48671919]
[1672862003333,3.37185324,1252.7,1252.4,4.48671919]
[1672862003545,5.87185324,1252.7,1252.4,4.48653983]
[1672862003865,1.77685324,1252.7,1252.5,5.79354731]
[1672862004078,1.77685324,1252.8,1252.6,1.592]
[1672862004281,4.14945719,1252.9,1252.7,3.0073]
[1672862004706,4.14945719,1252.9,1252.8,2.5]
[1672862005026,1.77685324,1252.9,1252.8,2.5]
[1672862005338,4.14945719,1252.9,1252.8,2.5]
[1672862006488,1.77685324,1252.9,1252.8,2.5]
[1672862006700,4.14945719,1253.0,1252.8,4.095]
[1672862006911,1.77685324,1253.0,1252.9,3.0073]
[1672862007115,1.77685324,1253.0,1252.9,4.6013]
[1672862007334,4.14945719,1253.1,1252.9,4.6013]
[1672862007751,4.14945719,1253.1,1253.0,2.5]
[1672862010376,2.37260395,1253.1,1253.0,2.5]
[1672862011115,4.14708185,1253.1,1253.0,2.5]
[1672862011426,2.37260395,1253.1,1253.0,2.5]
[1672862012377,4.87260395,1253.1,1252.9,6.1023]
[1672862012587,1.77410973,1253.0,1252.9,6.1023]
[1672862012793,3.27410973,1253.0,1252.9,6.1023]
[1672862013103,1.77410973,1253.0,1252.9,6.1023]
[1672862014160,1.77410973,1253.0,1252.9,6.09914289]
[1672862016369,1.77410973,1253.0,1252.9,6.09614289]
[1672862017314,8.43335084,1253.0,1252.7,4.19954731]
[1672862017521,1.59,1252.8,1252.7,4.19954731]
[1672862017734,1.59,1252.8,1252.7,6.69954731]
[1672862018481,3.36435905,1252.8,1252.7,3.0073]
[1672862018893,3.36935905,1252.8,1252.7,3.0073]
[1672862019316,3.36935905,1252.8,1252.6,3.69224731]
[1672862019529,1.595,1252.7,1252.6,3.69224731]
[1672862020684,3.36935905,1252.7,1252.6,3.69224731]
[1672862021322,3.36935905,1252.7,1252.6,1.19224731]
[1672862022787,3.95660395,1252.7,1252.5,1.19224731]
[1672862022998,3.37077565,1252.6,1252.5,1.19224731]
[1672862023315,3.36577565,1252.6,1252.4,5.48653983]
[1672862023526,4.091,1252.5,1252.4,3.69224731]
[1672862023731,4.091,1252.5,1252.4,5.48653983]
[1672862023949,4.091,1252.5,1252.4,2.98653983]
[1672862024152,4.091,1252.5,1252.4,1.19224731]
[1672862027619,1.591,1252.5,1252.4,1.19224731]
[1672862027829,1.591,1252.5,1252.4,2.69224731]
[1672862028038,1.591,1252.5,1252.4,1.19224731]
[1672862030463,1.591,1252.5,1252.4,2.69224731]
[1672862032046,1.591,1252.5,1252.4,4.48653983]
[1672862032673,1.591,1252.5,1252.4,2.69224731]
[1672862032884,1.591,1252.5,1252.4,1.19224731]
[1672862033096,1.591,1252.5,1252.4,2.69224731]
[1672862034450,1.591,1252.5,1252.4,1.19224731]
[1672862034875,1.591,1252.5,1252.4,1.5]
[1672862036035,1.591,1252.5,1252.4,2.69224731]
[1672862036987,1.591,1252.5,1252.4,1.5]
[1672862038668,1.591,1252.5,1252.3,8.49383983]
[1672862039087,1.591,1252.5,1252.4,1.19224731]
[1672862039296,1.591,1252.5,1252.4,1.5]
[1672862039713,1.591,1252.5,1252.4,2.69224731]
[1672862042347,1.591,1252.5,1252.4,1.5]
[1672862042559,1.591,1252.5,1252.4,2.69224731]
[1672862044239,1.591,1252.5,1252.4,1.19224731]
[1672862044469,3.36677565,1252.5,1252.3,6.69954731]
[1672862044878,1.595,1252.4,1252.3,6.69954731]
[1672862047293,1.595,1252.4,1252.3,8.49383983]
[1672862049497,1.595,1252.4,1252.3,7.30159252]
[1672862050125,1.595,1252.4,1252.3,9.66120574]
[1672862050551,1.595,1252.4,1252.3,7.30159252]
[1672862051286,1.595,1252.4,1252.3,9.66120574]
[1672862051497,1.595,1252.4,1252.3,7.30159252]
[1672862054233,1.595,1252.4,1252.3,7.86691322]
[1672862054556,1.595,1252.4,1252.3,9.28198393]
[1672862054868,3.36677565,1252.5,1252.3,9.28198393]
[1672862055079,3.36677565,1252.5,1252.4,3.29190049]
[1672862055919,3.36677565,1252.5,1252.4,4.4865248]
[1672862056756,3.36677565,1252.5,1252.4,3.29190049]
[1672862056757,3.96360395,1252.5,1252.4,3.29190049]
[1672862056963,5.74326517,1252.5,1252.4,1.79190049]
[1672862057178,3.96360395,1252.5,1252.4,2.98763228]
[1672862058129,17.11104689,1252.5,1252.3,2.98763228]
[1672862058338,6.93338378,1252.4,1252.3,1.19573179]
[1672862058557,12.50874689,1252.4,1252.3,1.19573179]
[1672862058767,15.00874689,1252.4,1252.3,2.98763228]
[1672862059179,15.00874689,1252.4,1252.3,1.19573179]
[1672862062250,1.5,1252.3,1252.2,1.19573179]
[1672862062449,5.464455,1252.3,1252.2,2.98763228]
[1672862062665,8.43127375,1252.3,1252.2,2.98763228]
[1672862062877,6.05781875,1252.3,1252.2,1.19573179]
[1672862063087,8.42985825,1252.3,1252.2,1.19573179]
[1672862063926,6.05781875,1252.3,1252.1,2.98763228]
[1672862064139,3.96721356,1252.2,1252.1,1.19573179]
[1672862064343,3.96721356,1252.2,1252.1,2.98763228]
[1672862064685,3.96721356,1252.2,1252.1,1.19573179]
[1672862065808,5.74528423,1252.2,1252.1,1.19573179]
[1672862066018,3.37307067,1252.2,1252.1,1.19573179]
[1672862066229,5.74528423,1252.2,1252.1,1.19573179]
[1672862066440,3.96721356,1252.2,1252.1,1.19573179]
[1672862067070,3.37293925,1252.2,1252.1,1.19573179]
[1672862067908,5.74515281,1252.2,1252.0,2.98763228]
[1672862068119,1.77793925,1252.2,1252.1,1.19573179]
[1672862068339,3.37293925,1252.2,1252.1,3.69573179]
[1672862069274,3.36393925,1252.2,1252.1,3.69573179]
[1672862069694,1.586,1252.2,1252.1,3.69573179]
[1672862069904,1.586,1252.2,1252.1,5.48763228]
[1672862070324,1.586,1252.2,1252.1,8.49493228]
[1672862071482,1.586,1252.2,1252.1,8.49317913]
[1672862072538,4.87293925,1252.3,1252.1,8.49317913]
[1672862076831,7.24515281,1252.3,1252.1,5.99317913]
[1672862077043,7.24515281,1252.3,1252.1,4.20127864]
[1672862077354,1.77793925,1252.2,1252.1,4.20127864]
[1672862080931,1.77793925,1252.2,1252.1,5.99317913]
[1672862081135,1.77793925,1252.2,1252.1,4.20127864]
[1672862085975,4.87293925,1252.3,1252.1,5.99317913]
[1672862086184,3.37293925,1252.3,1252.2,3.69397864]
[1672862086503,5.74515281,1252.3,1252.1,5.99317913]
[1672862086718,5.74515281,1252.3,1252.2,2.5]
[1672862087661,5.74515281,1252.3,1252.2,3.69397864]
[1672862087866,3.96721356,1252.3,1252.1,4.20127864]
[1672862088078,1.77836476,1252.2,1252.1,4.20127864]
[1672862088289,3.27836476,1252.2,1252.1,5.99317913]
[1672862088595,3.27836476,1252.2,1252.1,4.20127864]
[1672862088810,3.27836476,1252.2,1252.1,5.99317913]
[1672862089025,1.77836476,1252.2,1252.1,5.99317913]
[1672862089657,1.77836476,1252.2,1252.1,4.79920049]
[1672862089865,3.96721356,1252.3,1252.2,0.00402814]
[1672862090812,6.93403231,1252.3,1252.2,0.00402814]
[1672862091022,6.06181875,1252.3,1252.2,0.00402814]
[1672862094805,0.00110935,1252.2,1252.1,1.19465753]
[1672862095112,2.37358879,1252.2,1252.1,5.48655802]
[1672862095316,3.87358879,1252.2,1252.1,5.48655802]
[1672862095533,3.87358879,1252.2,1252.1,2.98655802]
[1672862096907,4.4679281,1252.2,1252.1,1.79190049]
[1672862097118,2.9679281,1252.2,1252.1,4.29190049]
[1672862097327,2.9679281,1252.2,1252.1,2.98887785]
[1672862097526,6.0629281,1252.2,1252.1,1.19697736]
[1672862097740,6.0629281,1252.2,1252.1,2.98887785]
[1672862097949,14.0109281,1252.2,1252.1,1.19697736]
[1672862098159,14.0109281,1252.2,1252.1,2.98887785]
[1672862099211,12.5109281,1252.2,1252.1,2.98887785]
[1672862099735,12.5109281,1252.2,1252.1,2.98889983]
[1672862100690,14.0109281,1252.2,1252.1,2.98889983]
[1672862100900,14.0109281,1252.2,1252.1,1.19699934]
[1672862101213,11.04410935,1252.2,1252.1,1.19699934]
[1672862102993,1.18040066,1252.1,1251.8,1.79190049]
[1672862103208,1.579,1251.8,1251.7,5.93280049]
[1672862103419,6.14224696,1251.8,1251.7,4.29190049]
[1672862103843,8.51700899,1251.8,1251.7,4.29190049]
[1672862104038,8.64224696,1251.8,1251.7,1.79190049]
[1672862104254,16.59024696,1251.8,1251.7,1.79190049]
[1672862104465,17.77127789,1251.8,1251.6,6.65151371]
[1672862104678,4.95214951,1251.8,1251.7,4.79920049]
[1672862104890,4.95214951,1251.8,1251.7,7.29920049]
[1672862105305,1.77814951,1251.9,1251.7,9.28271874]
[1672862105509,1.77814951,1251.9,1251.8,3.29302213]
[1672862105731,1.77814951,1252.0,1251.8,11.80761322]
[1672862105938,1.77814951,1252.0,1251.9,4.80018903]
[1672862106459,4.14916545,1252.1,1251.9,7.15980225]
[1672862106670,1.77814951,1252.0,1251.9,6.39918903]
[1672862106873,1.77814951,1252.1,1251.9,6.96591322]
[1672862107083,1.77814951,1252.1,1252.0,1.79267734]
[1672862108354,4.14916545,1252.1,1251.9,8.75859056]
[1672862108771,1.77814951,1252.0,1251.9,6.39897734]
[1672862110459,1.77814951,1252.0,1251.9,4.79997734]
[1672862111296,1.77814951,1252.0,1251.9,3.0073]
[1672862112445,2.37101594,1252.0,1251.9,3.0073]
[1672862112662,4.15105356,1252.0,1251.9,3.0073]
[1672862112872,1.78003762,1252.0,1251.9,3.0073]
[1672862113086,1.78003762,1252.0,1251.9,4.79997734]
[1672862114126,5.74505356,1252.1,1251.9,4.79997734]
[1672862114339,3.37403762,1252.1,1251.9,7.15959056]
[1672862114550,5.74505356,1252.1,1251.9,7.15959056]
[1672862114766,1.78003762,1252.0,1251.9,4.79997734]
[1672862114979,5.74505356,1252.1,1251.9,4.79997734]
[1672862115398,5.74505356,1252.1,1251.9,7.15959056]
[1672862115815,1.78003762,1252.0,1251.9,4.79997734]
[1672862116343,5.74505356,1252.1,1251.9,7.15959056]
[1672862116554,3.28003762,1252.0,1251.9,4.79997734]
[1672862118553,1.78003762,1252.0,1251.9,4.79997734]
[1672862119495,2.9678094,1252.0,1251.9,4.79997734]
[1672862120333,1.78003762,1252.0,1251.9,4.79997734]
[1672862122229,2.96828468,1252.0,1251.9,4.79997734]
[1672862122753,3.28003762,1252.0,1251.9,4.79997734]
[1672862122957,1.78003762,1252.0,1251.9,4.79997734]
[1672862124856,1.18848509,1252.0,1251.9,5.36691322]
[1672862125166,1.18848509,1252.0,1251.9,6.78247748]
[1672862125588,2.96852271,1252.1,1251.9,7.37238078]
[1672862125797,2.96852271,1252.1,1252.0,4.18320763]
[1672862126214,1.18848509,1252.1,1252.0,2.39040436]
[1672862126629,4.15216291,1252.2,1252.0,15.49596554]
[1672862126630,1.18986782,1252.2,1252.0,15.49596554]
[1672862126844,2.96899247,1252.3,1252.1,16.91926554]
[1672862127055,1.13745485,1252.3,1252.2,5.4044028]
[1672862127690,1.13745485,1252.3,1252.2,7.9044028]
[1672862128525,1.78003762,1252.4,1252.3,2.5]
[1672862128740,1.78003762,1252.4,1252.3,8.88281883]
[1672862128948,5.3392629,1252.6,1252.3,11.27299403]
[1672862129268,5.3392629,1252.6,1252.5,3.0073]
[1672862129582,2.37101594,1252.6,1252.5,3.0073]
[1672862129792,5.3392629,1252.6,1252.5,3.0073]
[1672862130003,2.37101594,1252.6,1252.5,4.5983]
[1672862130419,5.3392629,1252.6,1252.5,4.5983]
[1672862130630,2.37101594,1252.6,1252.5,4.5983]
[1672862131265,2.96824696,1252.6,1252.5,3.0073]
[1672862132427,5.34143853,1252.6,1252.5,3.0073]
[1672862133365,4.56724696,1252.6,1252.5,3.0073]
[1672862133779,4.56724696,1252.6,1252.3,3.0073]
[1672862133987,1.599,1252.4,1252.3,3.0073]
[1672862134200,5.47088371,1252.4,1252.3,3.0073]
[1672862134620,5.46988371,1252.4,1252.3,3.0073]
[1672862135043,8.43813067,1252.4,1252.3,3.0073]
[1672862135462,5.46988371,1252.4,1252.3,3.0073]
[1672862137460,16.38613067,1252.4,1252.3,3.0073]
[1672862137669,14.01424696,1252.4,1252.3,3.0073]
[1672862138090,16.38449353,1252.4,1252.3,3.0073]
[1672862138619,16.3844322,1252.4,1252.3,3.0073]
[1672862138831,14.01424696,1252.4,1252.1,3.0073]
[1672862139042,14.01424696,1252.4,1252.2,2.5]
[1672862139043,3.96690886,1252.3,1252.2,2.5]
[1672862139355,11.91490886,1252.3,1252.1,5.5073]
[1672862139564,11.91490886,1252.3,1252.1,3.0073]
[1672862139776,1.591,1252.2,1252.1,3.0073]
[1672862139979,11.90890886,1252.2,1252.1,3.0073]
[1672862140510,2.5,1252.1,1251.9,2.5]
[1672862140724,6.46672936,1252.1,1251.9,2.5]
[1672862141036,6.46672936,1252.1,1251.8,16.9653]
[1672862141037,14.41472936,1252.1,1251.8,16.9653]
[1672862141247,14.41472936,1252.1,1251.9,2.5]
[1672862142820,4.099,1252.1,1251.9,2.5]
[1672862143029,4.099,1252.1,1252.0,3.0073]
[1672862143030,1.599,1252.1,1252.0,3.0073]
[1672862143239,10.31572936,1252.2,1252.0,3.0073]
[1672862143240,11.91472936,1252.2,1252.0,3.0073]
[1672862143453,14.41472936,1252.2,1252.0,3.0073]
[1672862143661,2.36772936,1252.2,1252.0,3.0073]
[1672862144089,4.86772936,1252.2,1252.0,3.0073]
[1672862148917,4.86772936,1252.2,1252.0,3.00471136]
[1672862149132,2.36772936,1252.2,1252.0,3.00471136]
[1672862149973,4.86772936,1252.2,1252.0,3.00471136]
[1672862150289,2.36772936,1252.2,1252.0,3.00471136]
[1672862152077,6.92397632,1252.3,1252.0,3.00471136]
[1672862152286,6.92397632,1252.3,1252.2,3.0073]
[1672862152287,3.95572936,1252.3,1252.2,3.0073]
[1672862155020,3.95572936,1252.3,1252.1,1.5]
[1672862155021,3.96672936,1252.3,1252.1,1.5]
[1672862155434,3.96672936,1252.3,1252.2,3.0073]
[1672862155640,2.36772936,1252.4,1252.2,4.6063]
[1672862156278,5.33597632,1252.5,1252.3,1.599]
[1672862156492,2.36772936,1252.5,1252.4,3.0073]
[1672862157540,2.36772936,1252.5,1252.4,4.6033]
[1672862160275,2.36772936,1252.6,1252.4,4.6033]
[1672862160798,2.36772936,1252.6,1252.5,2.5]
[1672862161219,2.96824696,1252.6,1252.5,2.5]
[1672862161430,5.33876046,1252.6,1252.5,2.5]
[1672862161854,2.96824696,1252.6,1252.5,2.5]
[1672862162067,2.96824696,1252.6,1252.4,4.6033]
[1672862162265,4.86963855,1252.5,1252.4,3.0073]
[1672862162478,4.86963855,1252.5,1252.4,5.5073]
[1672862163007,2.36963855,1252.5,1252.4,5.5073]
[1672862163743,2.36963855,1252.5,1252.4,2.5]
[1672862164373,6.93688551,1252.6,1252.4,2.5]
[1672862164581,6.93688551,1252.6,1252.5,3.0073]
[1672862164796,3.96863855,1252.6,1252.5,3.0073]
[1672862165006,2.36963855,1252.6,1252.5,3.0073]
[1672862165316,2.36963855,1252.7,1252.5,4.5913]
[1672862165525,3.96763855,1252.8,1252.5,4.5913]
[1672862165852,2.36963855,1252.9,1252.7,12.5533]
[1672862166050,2.36963855,1252.9,1252.7,10.9553]
[1672862166585,2.96824696,1253.0,1252.7,10.9553]
[1672862166900,3.56189635,1253.2,1252.9,4.5963]
[1672862166901,5.46824696,1253.1,1252.9,4.5963]
[1672862167110,2.96824696,1253.1,1252.9,4.5963]
[1672862167319,2.96824696,1253.0,1252.9,3.0073]
[1672862167740,2.96824696,1253.0,1252.8,3.091]
[1672862168051,1.5,1252.9,1252.8,6.0983]
[1672862168255,1.5,1252.9,1252.8,4.5073]
[1672862168789,4.56024696,1253.0,1252.8,4.5073]
[1672862168990,1.592,1253.0,1252.8,4.5073]
[1672862170256,1.599,1253.1,1252.9,7.948]
[1672862170473,4.56724696,1253.2,1253.0,10.9553]
[1672862170789,2.96824696,1253.3,1253.0,12.5463]
[1672862170989,2.96824696,1253.3,1253.2,3.0073]
[1672862171833,2.96824696,1253.4,1253.2,3.0073]
[1672862172468,4.56724696,1253.5,1253.2,3.0073]
[1672862172678,4.56724696,1253.5,1253.4,3.0073]
[1672862173101,1.599,1253.5,1253.4,3.0073]
[1672862173308,1.599,1253.5,1253.3,2.5]
[1672862173518,1.599,1253.5,1253.4,3.0073]
[1672862174042,1.599,1253.5,1253.3,2.5]
[1672862176245,4.56724696,1253.7,1253.4,3.0073]
[1672862176460,1.599,1253.7,1253.4,3.0073]
[1672862176659,1.599,1253.7,1253.5,2.5]
[1672862178136,7.08124696,1253.8,1253.5,4.091]
[1672862178457,1.613,1253.8,1253.6,3.0073]
[1672862178667,4.56724696,1253.9,1253.6,4.6003]
[1672862178870,1.599,1253.9,1253.8,3.0073]
[1672862179080,1.597,1253.9,1253.8,3.0073]
[1672862179713,1.597,1253.9,1253.6,1.599]
[1672862179922,1.597,1253.9,1253.6,4.6063]
[1672862182024,1.599,1253.8,1253.6,3.0073]
[1672862182227,3.099,1253.8,1253.6,3.0073]
[1672862184972,7.1023,1254.0,1253.7,3.19]
[1672862184973,2.5,1254.0,1253.7,3.19]
[1672862185178,2.5,1254.1,1253.9,1.596]
[1672862185390,3.0073,1254.2,1253.9,1.596]
[1672862185810,12.04,1254.3,1253.9,1.596]
[1672862186020,2.5,1254.2,1253.9,1.596]
[1672862186439,2.5,1254.2,1254.0,3.0073]
[1672862186650,2.5,1254.2,1254.1,2.5]
[1672862187069,2.5,1254.2,1254.0,3.0073]
[1672862187496,2.5,1254.2,1254.1,2.5]
[1672862189280,1.597,1254.2,1254.1,2.5]
[1672862189487,1.597,1254.2,1253.9,3.0073]
[1672862189702,2.5,1254.1,1253.9,3.0073]
[1672862190757,2.5,1254.1,1254.0,2.5]
[1672862191169,11.30728158,1254.2,1254.0,2.5]
[1672862191483,3.35928158,1254.2,1254.0,2.5]
[1672862191693,7.1063,1254.3,1254.0,2.5]
[1672862192222,7.1063,1254.3,1254.1,3.0073]
[1672862192431,4.6063,1254.3,1254.1,3.0073]
[1672862193375,4.6063,1254.3,1254.0,2.5]
[1672862193376,1.597,1254.2,1254.0,2.5]
[1672862193590,4.097,1254.2,1254.0,2.5]
[1672862195800,1.597,1254.2,1254.0,2.5]
[1672862196432,4.097,1254.2,1254.0,2.5]
[1672862196634,4.097,1254.2,1253.9,4.5073]
[1672862197900,1.599,1254.3,1254.1,3.0073]
[1672862198114,1.599,1254.3,1254.2,2.5]
[1672862199374,1.599,1254.3,1254.1,3.0073]
[1672862199590,4.099,1254.3,1254.1,3.0073]
[1672862199802,4.099,1254.3,1254.1,5.5073]
[1672862200541,4.099,1254.3,1254.2,2.5]
[1672862201061,4.099,1254.3,1254.1,5.5073]
[1672862201276,1.599,1254.3,1254.1,5.5073]
[1672862202322,2.5,1254.2,1254.1,3.0073]
[1672862202743,2.5,1254.2,1253.9,6.1063]
[1672862203057,4.097,1254.2,1253.9,10.9553]
[1672862203476,4.097,1254.2,1253.9,3.0073]
[1672862204422,4.26228158,1254.2,1254.0,2.5]
[1672862204835,1.76228158,1254.3,1254.1,3.0073]
[1672862205051,2.5,1254.3,1254.2,1.5]
[1672862205264,4.26228158,1254.3,1254.2,1.5]
[1672862205468,7.63096237,1254.4,1254.2,1.5]
[1672862205469,9.39324395,1254.4,1254.2,1.5]
[1672862205685,4.26228158,1254.4,1254.2,1.5]
[1672862206424,1.5,1254.3,1254.2,1.5]
[1672862207163,6.61384395,1254.4,1254.2,1.5]
[1672862207885,1.76228158,1254.4,1254.3,4.6033]
[1672862208212,1.76228158,1254.5,1254.3,4.6033]
[1672862209687,1.76228158,1254.5,1254.3,12.5513]
[1672862210094,1.76228158,1254.5,1254.4,2.5]
[1672862210742,4.11384395,1254.5,1254.4,2.5]
[1672862210953,6.61384395,1254.5,1254.3,4.6033]
[1672862211260,1.5,1254.4,1254.3,3.0073]
[1672862211896,3.26228158,1254.4,1254.3,3.0073]
[1672862212520,3.26228158,1254.4,1254.1,3.0073]
[1672862212521,4.85428158,1254.4,1254.1,3.0073]
[1672862212731,3.35928158,1254.3,1254.1,3.0073]
[1672862213153,1.599,1254.2,1254.1,3.0073]
[1672862213364,1.599,1254.2,1253.9,3.0073]
[1672862213572,1.599,1254.2,1254.1,3.0073]
[1672862214416,3.36128158,1254.2,1254.1,3.0073]
[1672862214620,1.599,1254.2,1254.1,3.0073]